[Event "WYCC 2018 O18"]
[Site "Halkidiki"]
[Date "2018.10.20"]
[Round "1"]
[White "Talmaci, Alexandru"]
[Black "Tran, Minh Thang"]
[Result "0-1"]
[ECO "E19"]
[WhiteElo "2009"]
[BlackElo "2341"]
[Annotator "NA"]
[PlyCount "106"]
[EventDate "2018.10.20"]
[EventType "swiss"]
[EventCountry "GRE"]
[SourceTitle "playchess.com"]
[Source "ChessBase"]
[SourceQuality "1"]
[TimeControl "40/5400+30:1800+30"]

1. d4 {[%emt 0:00:00]} Nf6 {[%emt 0:00:11]} 2. c4 {[%emt 0:00:00]} b6 {[%emt 0:00:36]} 3. Nf3 {[%emt 0:03:25]} e6 {[%emt 0:01:10]} 4. g3 {[%emt 0:02:17]} Bb7 {[%emt 0:00:55]} 5. Bg2 {[%emt 0:00:23]} Be7 {[%emt 0:00:14]} 6. O-O {[%emt 0:02:15]} O-O {[%emt 0:00:13]} 7. Nc3 {[%emt 0:02:08]} Ne4 {[%emt 0:01:07]} 8. Qc2 {[%emt 0:05:54]} Nxc3 {[%emt 0:01:08]} 9. Qxc3 {[%emt 0:00:16]} Be4 {[%emt 0:05:35]} 10. Ne5 {[%emt 0:15:45] E19: Queen's Indian: Old Main Line with 7...Ne4 8 Qc2 Nxc3 8 Qxc3} (10. Rd1 d6 11. Qe3 d5 12. Ne5 Bxg2 13. Kxg2 c6 14. cxd5 cxd5 15. Bd2 Qd6 16. Rac1 f6 17. Nf3 Nc6 18. Rc2 Rac8 19. Rdc1 Rc7 20. Bb4 {1-0 (20) Radjabov,T (2696)-Indjic,A (2573) Novi Sad 2016}) 10... Bxg2 {[%emt 0:01:44]} 11. Kxg2 {[%emt 0:00:08]} Bf6 {[%emt 0:12:59]} 12. Ng4 {[%emt 0:12:40]} Be7 {[%emt 0:00:54]} 13. Ne5 {[%emt 0:03:30]} Na6 {[%emt 0:09:32]} 14. Rd1 $146 {[%emt 0:03:50]} ({Predecessor:} 14. e4 c5 15. d5 exd5 16. cxd5 Bf6 17. Qc4 b5 18. Qxb5 Nc7 19. Qxc5 d6 20. Nxf7 Rxf7 {0-1 (25) Lindh,B-Nordstrom,E Sweden 1975}) 14... f6 {[%emt 0:13:02]} 15. Nd3 {[%emt 0:03:47]} f5 {[%emt 0:09:55]} 16. b4 {[%emt 0:14:05]} Bf6 {[%emt 0:01:19]} 17. Bb2 {[%emt 0:00:51]} c6 {[%emt 0:07:20]} 18. f3 {[%emt 0:07:17]} Qe8 {[%emt 0:07:51]} 19. Qb3 {[%emt 0:02:37]} Nc7 {[%emt 0:01:14]} 20. a4 {[%emt 0:02:19]} a6 {[%emt 0:04:56]} 21. Re1 {[%emt 0:03:40]} Qf7 {[%emt 0:01:37]} 22. e4 {[%emt 0:02:52]} b5 {[%emt 0:02:49]} 23. e5 {[%emt 0:02:44]} bxc4 {[%emt 0:02:32]} 24. Qxc4 {[%emt 0:00:07]} Be7 {[%emt 0:00:13]} 25. Bc1 {[%emt 0:01:29]} Nd5 {[%emt 0:03:05]} 26. Bd2 {[%emt 0:01:08]} g5 {[%emt 0:02:19]} 27. Nf2 {[%emt 0:03:19]} h5 {[%emt 0:05:50]} 28. Rab1 {[%emt 0:03:02]} g4 {[%emt 0:01:20]} 29. f4 {[%emt 0:00:37]} h4 {[%emt 0:00:07]} 30. Nd3 {[%emt 0:00:58]} Kg7 {[%emt 0:00:54]} 31. Nc5 {[%emt 0:01:17]} Rh8 {[%emt 0:01:35]} 32. Rh1 {[%emt 0:00:41]} Bxc5 {[%emt 0:00:34]} 33. bxc5 {[%emt 0:00:05]} Rab8 {[%emt 0:00:14]} 34. Rxb8 {[%emt 0:00:48]} Rxb8 {[%emt 0:00:02]} 35. Qxa6 {[%emt 0:00:33]} Rb2 {[%emt 0:01:30]} 36. Qd3 {[%emt 0:00:25]} Qe8 {[%emt 0:00:02]} 37. a5 {[%emt 0:00:40]} Qb8 {[%emt 0:00:54]} 38. Rd1 {[%emt 0:00:27]} Qb4 {[%emt 0:00:43]} 39. Kg1 {[%emt 0:00:25]} Qa4 {[%emt 0:00:01]} 40. Be1 {[%emt 0:00:00]} h3 {[%emt 0:00:00]} 41. Rd2 {[%emt 0:10:23]} Rb3 {[%emt 0:07:43]} 42. Qc2 {[%emt 0:06:13]} Qb5 {[%emt 0:01:56]} 43. Re2 {[%emt 0:04:49]} Ne3 $19 {[%emt 0:09:31]} 44. Qa2 {[%emt 0:03:39]} Ng2 {[%emt 0:01:10]} 45. a6 {[%emt 0:02:31]} Ra3 {[%emt 0:01:21]} 46. Qd2 {[%emt 0:03:16]} Qxa6 {[%emt 0:00:31]} 47. Kf2 {[%emt 0:00:26]} Rd3 {[%emt 0:00:45]} 48. Qb2 {[%emt 0:00:44]} Rf3+ {[%emt 0:01:36]} 49. Kg1 {[%emt 0:00:05]} Qd3 {[%emt 0:00:49]} 50. Qd2 {[%emt 0:02:33]} Qb1 {[%emt 0:00:49]} 51. Qa5 {[%emt 0:01:12]} Ne3 {[%emt 0:00:25]} 52. Rf2 {[%emt 0:00:24]} Qd3 {[%emt 0:00:40]} 53. Qd8 {[%emt 0:00:56]} Qf1+ {[%emt 0:00:13]} 0-1

[Event "WYCC 2018 O18"]
[Site "Halkidiki"]
[Date "2018.10.20"]
[Round "1"]
[White "Pobor, Danilo"]
[Black "Varacalli, Francisco"]
[Result "0-1"]
[ECO "E91"]
[WhiteElo "1934"]
[BlackElo "2334"]
[Annotator "NA"]
[PlyCount "100"]
[EventDate "2018.10.20"]
[EventType "swiss"]
[EventCountry "GRE"]
[SourceTitle "playchess.com"]
[Source "ChessBase"]
[SourceQuality "1"]
[TimeControl "40/5400+30:1800+30"]

1. d4 {[%emt 0:00:00]} Nf6 {[%emt 0:00:00]} 2. Nf3 {[%emt 0:00:00]} g6 {[%emt 0:00:49]} 3. c4 {[%emt 0:00:04]} Bg7 {[%emt 0:01:01]} 4. Nc3 {[%emt 0:00:10]} d6 {[%emt 0:02:21]} 5. e4 {[%emt 0:00:22]} O-O {[%emt 0:00:13]} 6. Be2 {[%emt 0:00:08]} Na6 {[%emt 0:00:22]} 7. Be3 {[%emt 0:02:11]} e5 {[%emt 0:05:43]} 8. d5 {[%emt 0:02:33]} Ng4 {[%emt 0:03:54]} 9. Bg5 {[%emt 0:03:45]} f6 {[%emt 0:02:00]} 10. Bh4 {[%emt 0:00:02]} h5 {[%emt 0:02:53] E92: King's Indian: Classical: 6 Be2 e5: 7 dxe5, 7 Be3 and Petrosian System without 7...Nbd7} 11. Nd2 {[%emt 0:05:11]} (11. h3 Nh6 12. Nd2 Nf7 13. f3 Bh6 14. Bf2 c6 15. a3 Bd7 16. Nb3 c5 17. Nc1 Kh8 18. Nd3 {1-0 (70) Fedoseev,V (2707)-Firouzja,A (2561) Abu Dhabi 2018}) 11... Nh6 {[%emt 0:01:55] LiveBook: 6 Games} 12. f3 {[%emt 0:07:08]} c5 {[%emt 0:04:32]} 13. a3 {[%emt 0:04:13]} Nf7 {[%emt 0:02:06]} 14. Bf2 $146 {[%emt 0:03:54]} ({Predecessor:} 14. Rb1 Bh6 15. Bf2 f5 16. b4 b6 17. h4 f4 18. Bd3 Rb8 {½-½ (18) Tisdall,J (2422)-Relange,E (2468) Plovdiv 2010}) 14... Bh6 {[%emt 0:04:09]} 15. b4 {[%emt 0:05:16]} Bxd2+ {[%emt 0:12:18]} 16. Qxd2 {[%emt 0:01:34]} b6 {[%emt 0:02:28]} 17. bxc5 {[%emt 0:06:49]} Nxc5 {[%emt 0:06:23]} 18. Bxc5 {[%emt 0:04:42]} dxc5 {[%emt 0:06:28]} ({Black should try} 18... bxc5 $11 19. O-O Bd7) 19. a4 {[%emt 0:08:31]} a5 {[%emt 0:01:54]} 20. O-O {[%emt 0:03:25]} Kg7 {[%emt 0:03:44]} 21. Nb5 $14 {[%emt 0:04:02]} Ba6 {[%emt 0:02:42]} 22. Rfb1 {[%emt 0:04:03]} Bxb5 {[%emt 0:03:24]} 23. Rxb5 {[%emt 0:00:40]} Nd6 {[%emt 0:01:16]} 24. Rb3 {[%emt 0:03:39]} Rb8 {[%emt 0:03:59]} 25. Qb2 {[%emt 0:03:56]} Rf7 {[%emt 0:01:12]} 26. Rb1 {[%emt 0:05:03]} Rfb7 {[%emt 0:01:03]} 27. Bd3 {[%emt 0:01:12]} Ne8 {[%emt 0:01:24]} 28. f4 {[%emt 0:03:31]} Qd6 {[%emt 0:05:25]} 29. fxe5 {[%emt 0:01:55]} fxe5 {[%emt 0:00:05]} 30. Rf1 {[%emt 0:00:36]} Nf6 {[%emt 0:01:17]} 31. Bb1 {[%emt 0:00:31]} Rf7 {[%emt 0:01:39]} 32. Rbf3 {[%emt 0:00:46]} Rbf8 {[%emt 0:00:14]} 33. Qf2 {[%emt 0:00:57]} Qe7 {[%emt 0:02:50]} 34. Qb2 {[%emt 0:00:40]} Ng4 {[%emt 0:01:27]} 35. Qxb6 {[%emt 0:04:36]} Rxf3 {[%emt 0:00:08]} 36. Rxf3 {[%emt 0:00:56]} Qg5 {[%emt 0:01:22]} 37. Qb7+ {[%emt 0:05:20]} Kh6 {[%emt 0:00:08]} 38. Qb2 {[%emt 0:02:29]} Rxf3 {[%emt 0:00:24]} 39. gxf3 {[%emt 0:00:01]} Ne3+ {[%emt 0:02:14]} 40. Kh1 {[%emt 0:00:00]} Nxc4 {[%emt 0:00:00]} 41. Qg2 {[%emt 0:02:57]} Qc1+ {[%emt 0:13:32]} 42. Qg1 {[%emt 0:00:02]} Qd2 {[%emt 0:00:23]} 43. Qg2 {[%emt 0:04:04]} Qd1+ {[%emt 0:00:27]} 44. Qg1 {[%emt 0:00:01]} Qxf3+ {[%emt 0:00:11]} 45. Qg2 {[%emt 0:00:07]} Qd1+ {[%emt 0:01:12]} 46. Qg1 {[%emt 0:00:01]} Qxg1+ {[%emt 0:00:32]} 47. Kxg1 {[%emt 0:00:02]} Kg5 {[%emt 0:00:15]} 48. Kf2 {[%emt 0:01:06]} Kf4 {[%emt 0:00:22]} 49. Bc2 {[%emt 0:07:43]} g5 {[%emt 0:00:45]} 50. Kg2 {[%emt 0:01:56]} Ne3+ {[%emt 0:00:57]} 0-1

[Event "WYCC 2018 O18"]
[Site "Halkidiki"]
[Date "2018.10.21"]
[Round "2"]
[White "Galiana Fernandez, Adrian"]
[Black "Stavropoulos, Konstantinos"]
[Result "1-0"]
[ECO "B47"]
[WhiteElo "2261"]
[BlackElo "2045"]
[Annotator "NA"]
[PlyCount "83"]
[EventDate "2018.10.20"]
[EventType "swiss"]
[EventCountry "GRE"]
[SourceTitle "playchess.com"]
[Source "ChessBase"]
[SourceQuality "1"]
[TimeControl "40/5400+30:1800+30"]

1. e4 {[%emt 0:00:00]} c5 {[%emt 0:00:00]} 2. Nf3 {[%emt 0:00:00]} Nc6 {[%emt 0:01:24]} 3. d4 {[%emt 0:00:00]} cxd4 {[%emt 0:00:05]} 4. Nxd4 {[%emt 0:00:00]} e6 {[%emt 0:00:15]} 5. Nc3 {[%emt 0:00:00]} Qc7 {[%emt 0:00:14]} 6. g3 {[%emt 0:00:00]} a6 {[%emt 0:01:11]} 7. Bg2 {[%emt 0:00:07]} h5 {[%emt 0:00:18]} 8. O-O {[%emt 0:01:17] B47: Sicilian: Taimanov: 5 Nc3 Qc7 6 f4, 6 g3 and 6 Be2} Nf6 {[%emt 0:00:11]} 9. h3 {[%emt 0:00:11]} (9. Re1 Nxd4 10. Qxd4 Bc5 11. Bf4 d6 12. Qd2 Ng4 13. Re2 O-O 14. Rd1 Ne5 15. Na4 Ba7 16. b3 {½-½ (45) Firouzja,A (2561)-Le,Q (2727) Abu Dhabi 2018}) 9... Be7 {[%emt 0:16:16]} 10. Re1 {[%emt 0:01:08]} d6 {[%emt 0:01:07]} 11. Nxc6 $146 {[%emt 0:00:33]} ({Predecessor:} 11. a4 Rb8 12. Nb3 h4 13. g4 Nh7 {1-0 (36) Mrva,M (2417)-Macko,M (2167) Slovakia 2015}) 11... bxc6 {[%emt 0:00:10]} 12. e5 {[%emt 0:00:07]} dxe5 {[%emt 0:01:24]} 13. Rxe5 {[%emt 0:01:36]} O-O {[%emt 0:03:28]} 14. Re1 {[%emt 0:01:17]} Rd8 {[%emt 0:06:44]} 15. Qf3 {[%emt 0:01:23]} Bd7 {[%emt 0:00:51]} 16. Bf4 {[%emt 0:01:53]} Qb6 {[%emt 0:03:54]} 17. Na4 {[%emt 0:01:09]} Qa5 {[%emt 0:00:06]} 18. b3 {[%emt 0:04:27]} Rac8 {[%emt 0:07:01]} 19. Nb2 {[%emt 0:08:56]} Qf5 {[%emt 0:04:48]} 20. Nc4 {[%emt 0:06:23]} Nd5 {[%emt 0:01:02]} 21. Nd6 {[%emt 0:04:55]} Bxd6 {[%emt 0:01:36]} 22. Bxd6 {[%emt 0:03:54]} Qxc2 {[%emt 0:01:34]} 23. Qxh5 {[%emt 0:00:41]} Qh7 {[%emt 0:06:28]} 24. Qe2 {[%emt 0:04:16]} a5 {[%emt 0:03:27]} 25. Rac1 {[%emt 0:00:41]} f6 {[%emt 0:05:34]} 26. Rc4 {[%emt 0:07:05]} Kf7 {[%emt 0:06:28]} (26... e5 $16 {was called for.}) 27. Rh4 {[%emt 0:05:00]} Qg8 {[%emt 0:00:30]} 28. Be4 {[%emt 0:04:08]} g6 {[%emt 0:00:55]} 29. Rh6 {[%emt 0:02:57]} Nc3 {[%emt 0:06:19]} 30. Qd3 {[%emt 0:05:35]} Nxe4 {[%emt 0:00:15]} 31. Rxe4 {[%emt 0:00:06]} g5 {[%emt 0:06:26]} 32. Rd4 {[%emt 0:01:31]} f5 {[%emt 0:02:06]} 33. Be5 {[%emt 0:00:10]} Ke7 {[%emt 0:04:53]} 34. Bf6+ {[%emt 0:00:13]} Ke8 {[%emt 0:00:09]} 35. Rh8 {[%emt 0:00:26]} Qxh8 {[%emt 0:00:14]} 36. Bxh8 {[%emt 0:00:07]} c5 {[%emt 0:00:06]} 37. Rd6 {[%emt 0:00:28]} Ke7 {[%emt 0:02:46]} 38. Be5 $18 {[%emt 0:00:15]} a4 {[%emt 0:03:46]} 39. Qd2 {[%emt 0:00:30]} f4 {[%emt 0:00:55]} 40. Qd3 {[%emt 0:00:00]} Be8 {[%emt 0:00:00]} 41. Rxd8 {[%emt 0:00:23]} Rxd8 {[%emt 0:00:50]} 42. Bf6+ {[%emt 0:00:06]} 1-0

[Event "WYCC 2018 O18"]
[Site "Halkidiki"]
[Date "2018.10.21"]
[Round "2"]
[White "Bratkovic, Jakob"]
[Black "Polyakov, Fedor"]
[Result "1-0"]
[ECO "B33"]
[WhiteElo "2242"]
[BlackElo "2036"]
[Annotator "NA"]
[PlyCount "49"]
[EventDate "2018.10.20"]
[EventType "swiss"]
[EventCountry "GRE"]
[SourceTitle "playchess.com"]
[Source "ChessBase"]
[SourceQuality "1"]
[TimeControl "40/5400+30:1800+30"]

1. e4 {[%emt 0:01:00]} c5 {[%emt 0:00:15]} 2. Nf3 {[%emt 0:00:04]} Nc6 {[%emt 0:00:06]} 3. d4 {[%emt 0:00:11]} cxd4 {[%emt 0:00:08]} 4. Nxd4 {[%emt 0:00:21]} Nf6 {[%emt 0:00:09]} 5. Nc3 {[%emt 0:00:03]} e5 {[%emt 0:02:42]} 6. Ndb5 {[%emt 0:00:11]} d6 {[%emt 0:00:34]} 7. Bg5 {[%emt 0:00:07]} a6 {[%emt 0:00:47]} 8. Na3 {[%emt 0:00:03]} b5 {[%emt 0:00:28]} 9. Nd5 {[%emt 0:00:05]} Be7 {[%emt 0:00:04]} 10. Bxf6 {[%emt 0:00:35]} Bxf6 {[%emt 0:03:32]} 11. c3 {[%emt 0:00:05]} Ne7 {[%emt 0:05:09]} 12. Nxf6+ {[%emt 0:01:04]} gxf6 {[%emt 0:00:02]} 13. Nc2 {[%emt 0:00:10]} f5 {[%emt 0:00:59] B33: Sicilian: Pelikan and Sveshnikov Variations} (13... Bb7 14. Bd3 d5 15. exd5 Qxd5 16. Ne3 Qe6 17. a4 Rd8 18. Qc2 e4 19. Be2 O-O 20. axb5 axb5 21. Ra5 f5 22. Rxb5 Bc6 23. Bc4 Qd7 24. Rc5 f4 25. Nd1 Ng6 26. h4 Qd6 27. b4 Ba4 {0-1 (27) Lobanov,S (2521)-Reinderman,D (2575) Dieren 2018}) 14. exf5 {[%emt 0:08:53]} Nxf5 {[%emt 0:02:33]} 15. Bd3 {[%emt 0:08:01]} d5 {[%emt 0:07:35]} 16. Bxf5 {[%emt 0:02:35]} Bxf5 {[%emt 0:00:01]} 17. Ne3 {[%emt 0:00:12]} Be6 {[%emt 0:00:21]} 18. Qh5 $146 {[%emt 0:03:27]} ({Predecessor:} 18. O-O O-O 19. f4 f6 20. fxe5 fxe5 21. Qh5 {1-0 (46) Huebner,W-Blaskowski,J (2300) Germany 1995}) 18... Qf6 {[%emt 0:03:07]} 19. O-O {[%emt 0:01:38]} Rg8 {[%emt 0:05:41]} 20. f4 {[%emt 0:06:05]} e4 $18 {[%emt 0:11:32]} (20... O-O-O $16 {was necessary.}) 21. f5 {[%emt 0:00:58]} Bd7 {[%emt 0:16:55]} 22. Nxd5 {[%emt 0:04:07]} Qe5 {[%emt 0:00:17]} 23. Rad1 {[%emt 0:00:33]} e3 {[%emt 0:02:14]} 24. Rfe1 {[%emt 0:03:53]} Kf8 {[%emt 0:03:20]} 25. Qh6+ {[%emt 0:00:36]} 1-0

[Event "WYCC 2018 O18"]
[Site "Halkidiki"]
[Date "2018.10.21"]
[Round "2"]
[White "Tsomaia, Nikoloz"]
[Black "Fortanelli Rios, Juan Manuel"]
[Result "1-0"]
[ECO "B51"]
[WhiteElo "2201"]
[BlackElo "2015"]
[Annotator "NA"]
[PlyCount "55"]
[EventDate "2018.10.20"]
[EventType "swiss"]
[EventCountry "GRE"]
[SourceTitle "playchess.com"]
[Source "ChessBase"]
[SourceQuality "1"]
[TimeControl "40/5400+30:1800+30"]

1. e4 {[%emt 0:00:00]} c5 {[%emt 0:00:00]} 2. Nf3 {[%emt 0:00:00]} d6 {[%emt 0:00:00]} 3. Bb5+ {[%emt 0:00:30]} Nd7 {[%emt 0:00:00]} 4. d4 {[%emt 0:00:04]} Ngf6 {[%emt 0:00:00]} 5. Nc3 {[%emt 0:00:10]} a6 {[%emt 0:05:08]} 6. Bxd7+ {[%emt 0:00:10]} Bxd7 {[%emt 0:00:25]} ({Better is} 6... Nxd7 $14 7. dxc5 dxc5) 7. dxc5 {[%emt 0:11:59]} dxc5 {[%emt 0:06:03]} 8. e5 {[%emt 0:07:18]} Ng8 {[%emt 0:01:30]} 9. Be3 {[%emt 0:05:34]} e6 $1 {[%emt 0:10:56]} 10. Ne4 {[%emt 0:02:40]} Qc7 {[%emt 0:06:07]} 11. Qd2 {[%emt 0:01:42]} Bc6 {[%emt 0:09:40]} 12. Nd6+ {[%emt 0:00:30]} Bxd6 {[%emt 0:00:25]} 13. exd6 {[%emt 0:00:03]} Qc8 {[%emt 0:00:11]} 14. Ne5 {[%emt 0:02:41]} f6 $2 {[%emt 0:02:10]} (14... Nf6 $16) 15. Nc4 {[%emt 0:03:02]} Rb8 {[%emt 0:05:50]} 16. Nb6 {[%emt 0:02:05]} ({Finger weg von} 16. Bxc5 Bd7 $18) 16... Qd8 {[%emt 0:00:17]} 17. Bxc5 {[%emt 0:00:11]} Nh6 $2 {[%emt 0:00:43] [#]} (17... Bd7 {keeps fighting.} 18. b3 Nh6) 18. d7+ $18 {[%emt 0:00:13]} Kf7 {[%emt 0:00:43]} 19. O-O-O {[%emt 0:01:03]} Bxg2 {[%emt 0:03:04]} 20. Rhg1 {[%emt 0:00:07]} Bf3 {[%emt 0:02:30]} 21. Rde1 {[%emt 0:17:18]} Qc7 {[%emt 0:09:54]} 22. Qc3 {[%emt 0:00:27]} Qc6 {[%emt 0:04:25]} 23. Rg3 {[%emt 0:03:06]} Be4 {[%emt 0:05:51]} 24. Qb4 {[%emt 0:01:02]} Bf5 {[%emt 0:10:46]} 25. Rc3 {[%emt 0:00:41]} Qg2 {[%emt 0:03:15]} 26. Bd6 {[%emt 0:05:41]} Qxf2 {[%emt 0:01:46]} 27. Bg3 {[%emt 0:00:34]} Qg2 {[%emt 0:05:09]} 28. Bxb8 {[%emt 0:00:19]} 1-0

[Event "WYCC 2018 O18"]
[Site "Halkidiki"]
[Date "2018.10.21"]
[Round "2"]
[White "Liang, Albert"]
[Black "Liska, Jiri"]
[Result "0-1"]
[ECO "B33"]
[WhiteElo "2042"]
[BlackElo "2245"]
[Annotator "NA"]
[PlyCount "150"]
[EventDate "2018.10.20"]
[EventType "swiss"]
[EventCountry "GRE"]
[SourceTitle "playchess.com"]
[Source "ChessBase"]
[SourceQuality "1"]
[TimeControl "40/5400+30:1800+30"]

1. e4 {[%emt 0:00:00]} c5 {[%emt 0:00:00]} 2. Nf3 {[%emt 0:00:00]} Nc6 {[%emt 0:00:00]} 3. d4 {[%emt 0:00:07]} cxd4 {[%emt 0:00:11]} 4. Nxd4 {[%emt 0:00:10]} Nf6 {[%emt 0:00:15]} 5. Nc3 {[%emt 0:00:22]} e5 {[%emt 0:00:17]} 6. Ndb5 {[%emt 0:00:23]} d6 {[%emt 0:00:16]} 7. Bg5 {[%emt 0:00:42]} a6 {[%emt 0:00:22]} 8. Na3 {[%emt 0:00:10]} b5 {[%emt 0:00:30]} 9. Nd5 {[%emt 0:00:46]} Be7 {[%emt 0:00:23]} 10. Bxf6 {[%emt 0:01:04]} Bxf6 {[%emt 0:00:11]} 11. c4 {[%emt 0:00:39]} b4 {[%emt 0:02:42]} 12. Nc2 {[%emt 0:00:48]} Rb8 {[%emt 0:01:26]} 13. b3 {[%emt 0:01:43]} Bg5 {[%emt 0:06:58] B33: Sicilian: Pelikan and Sveshnikov Variations} 14. g3 {[%emt 0:05:01]} O-O {[%emt 0:04:57]} 15. h4 {[%emt 0:04:53] LiveBook: 40 Games} (15. Bg2 a5 16. O-O Ne7 17. h4 Bh6 18. Nxe7+ Qxe7 19. Qd5 Qc7 20. Rad1 Rd8 21. Kh2 Bg4 22. Rde1 Bd7 23. Qd3 Qc5 24. Rd1 {1-0 (55) Nakamura,H (2759)-Van Wely,L (2692) Wijk aan Zee 2012}) 15... Bh6 {[%emt 0:05:22]} 16. Bh3 {[%emt 0:12:34]} Be6 {[%emt 0:10:57]} 17. Kf1 {[%emt 0:02:10]} Qd7 {[%emt 0:12:13]} 18. Kg2 {[%emt 0:03:17]} a5 {[%emt 0:11:03]} 19. Qd3 {[%emt 0:06:54]} Rbe8 {[%emt 0:03:48]} 20. Rad1 {[%emt 0:20:12] [#]} Kh8 $146 {[%emt 0:08:59]} ({Predecessor:} 20... f5 21. exf5 Bxf5 22. Bxf5 Rxf5 {½-½ (33) Tiemann,H (2480)-Novak,J (2545) ICCF email 2009}) 21. Nde3 {[%emt 0:03:52]} Bxe3 {[%emt 0:08:49]} 22. Nxe3 {[%emt 0:06:32]} Nd4 {[%emt 0:01:41]} 23. Nc2 {[%emt 0:02:24]} Bxh3+ {[%emt 0:05:06]} 24. Rxh3 {[%emt 0:00:25]} f5 {[%emt 0:04:59]} 25. Re1 {[%emt 0:16:49]} fxe4 {[%emt 0:01:38]} 26. Qxe4 {[%emt 0:00:19]} Qf7 {[%emt 0:04:02]} 27. Rf1 {[%emt 0:01:27]} Nxc2 {[%emt 0:01:29]} 28. Qxc2 {[%emt 0:00:05]} Qf3+ {[%emt 0:00:08]} 29. Kg1 {[%emt 0:01:17]} e4 {[%emt 0:00:34]} 30. Qd1 {[%emt 0:01:32]} Qc3 {[%emt 0:00:55]} 31. Re1 {[%emt 0:01:31]} (31. Qe2 $142) 31... e3 {[%emt 0:02:37]} 32. f4 Re4 {[%emt 0:01:19]} 33. Re2 {[%emt 0:03:11]} (33. Qe2 $17) 33... Rd4 {[%emt 0:01:03]} 34. Qe1 {[%emt 0:00:23]} Re8 {[%emt 0:00:22]} 35. Rhh2 {[%emt 0:00:37]} Qd3 {[%emt 0:00:31]} 36. Qf1 {[%emt 0:00:54]} h6 {[%emt 0:00:20]} 37. Rhg2 {[%emt 0:01:12]} Qe4 {[%emt 0:00:50]} 38. Re1 {[%emt 0:00:46] [#]} Rd3 {[%emt 0:01:09]} ({Better is} 38... a4 $1 $17 {[%mdl 512]} 39. bxa4 Rxc4) 39. Rge2 {[%emt 0:00:52]} a4 {[%emt 0:00:26]} 40. bxa4 {[%emt 0:00:00]} Qd4 {[%emt 0:00:00]} 41. Qf3 {[%emt 0:12:04]} Re4 {[%emt 0:20:29]} (41... Qxc4 $17 42. f5 d5) 42. f5 {[%emt 0:08:21]} Ra3 {[%emt 0:04:24]} 43. f6 {[%emt 0:03:49]} gxf6 {[%emt 0:00:29]} 44. Qh5 {[%emt 0:01:08]} Kg7 {[%emt 0:00:44]} 45. Qb5 {[%emt 0:01:43]} Qxc4 {[%emt 0:03:16]} 46. Qb7+ {[%emt 0:01:44]} Kg8 {[%emt 0:01:53]} 47. Qb8+ {[%emt 0:01:02]} Kf7 {[%emt 0:00:53]} 48. Qh8 $2 {[%emt 0:01:36]} (48. Qxd6 $11 {and White has nothing to worry.} h5 49. Rf1) 48... d5 {[%emt 0:01:15]} 49. Rf1 {[%emt 0:02:31]} Re6 {[%emt 0:01:03]} ({Stronger than} 49... Qxe2 50. Qxf6+ Ke8 51. Qf8+ Kd7 52. Rf7+ Kc6 53. Qc8+ Kd6 54. Qc7+ Ke6 55. Qe7#) 50. Qh7+ {[%emt 0:00:23]} Ke8 {[%emt 0:00:18]} 51. Rfe1 {[%emt 0:02:31]} (51. Qg8+ $11 {remains equal.} Kd7 52. Qf7+ Re7 53. Qxf6) 51... Qg4 {[%emt 0:01:15]} 52. Kh2 {[%emt 0:00:36]} (52. Qc7 $142) 52... d4 {[%emt 0:00:21]} 53. Rc2 $2 {[%emt 0:00:56]} (53. Qh8+ {is the only way for White.} Kf7 54. Qh7+ Qg7 55. Qf5) 53... Rc3 {[%emt 0:00:19]} 54. Rxc3 {[%emt 0:00:36]} dxc3 {[%emt 0:00:35]} 55. Qh8+ {[%emt 0:00:18]} Kf7 {[%emt 0:00:43]} 56. Qh7+ {[%emt 0:00:38]} Qg7 {[%emt 0:00:38]} 57. Qd3 {[%emt 0:00:18]} Qg6 {[%emt 0:00:32]} 58. Qc4 {[%emt 0:00:32]} Qe4 {[%emt 0:00:30]} 59. Qc7+ {[%emt 0:00:39]} Re7 {[%emt 0:00:08]} 60. Qc5 {[%emt 0:00:31]} c2 {[%emt 0:00:39]} 61. Qh5+ {[%emt 0:00:48]} Kg7 {[%emt 0:00:18]} 62. Qc5 {[%emt 0:01:02]} Kf7 {[%emt 0:00:37]} 63. Qh5+ {[%emt 0:00:34]} Qg6 {[%emt 0:00:28]} 64. Qd5+ {[%emt 0:00:10]} Kg7 {[%emt 0:00:10]} 65. Qc5 {[%emt 0:00:22]} Re5 {[%emt 0:00:47]} 66. Qc7+ {[%emt 0:00:14]} Kg8 {[%emt 0:00:42]} 67. Qc8+ {[%emt 0:00:23]} Re8 {[%emt 0:00:24]} 68. Qc4+ {[%emt 0:00:16]} Kh8 $19 {[%emt 0:00:20]} 69. Re2 {[%emt 0:01:39]} Qe4 {[%emt 0:00:35]} 70. Qc7 {[%emt 0:00:56]} Re7 {[%emt 0:00:41]} 71. Qc8+ {[%emt 0:00:34]} Kg7 {[%emt 0:00:02]} 72. a5 {[%emt 0:00:31]} Qd3 {[%emt 0:00:31]} 73. Qg4+ {[%emt 0:00:10]} Kh7 {[%emt 0:00:07]} 74. Re1 {[%emt 0:00:26]} Qd2+ {[%emt 0:00:17]} 75. Re2 {[%emt 0:00:24]} Qxe2+ {[%emt 0:00:11]} 0-1